[Event "Titled Tuesday Blitz September 27 Early 2022"]
[White "Spalir, Monika"]
[Black "Jimenez Almeida, Luis David"]
[WhiteFideId "14609118"]
[BlackFideId "22242244"]
[WhiteElo "2032"]
[BlackElo "2077"]
[Result "1-0"]
[Round "07"]
[TimeControl "180+1"]
[Date "2022.09.27"]
[WhiteClock "0:00:06"]
[BlackClock "0:00:27"]

1. d4 {[%clk 0:02:52]}  g6 {[%clk 0:02:58]} 2. Nf3 {[%clk 0:02:51]}  Bg7 {[%clk 0:02:58]} 3. c4 {[%clk 0:02:49]}  c5 {[%clk 0:02:57]} 4. d5 {[%clk 0:02:48]}  d6 {[%clk 0:02:57]} 5. Nc3 {[%clk 0:02:47]}  Bxc3+ {[%clk 0:02:56]} 6. bxc3 {[%clk 0:02:47]}  f5 {[%clk 0:02:57]} 7. h4 {[%clk 0:02:08]}  Nf6 {[%clk 0:02:51]} 8. Bg5 {[%clk 0:01:33]}  Qa5 {[%clk 0:02:45]} 9. Rc1 {[%clk 0:01:31]}  Nbd7 {[%clk 0:02:43]} 10. e3 {[%clk 0:01:28]}  Nb6 {[%clk 0:02:38]} 11. Nd2 {[%clk 0:01:24]}  Bd7 {[%clk 0:02:36]} 12. h5 {[%clk 0:01:07]}  O-O-O {[%clk 0:02:33]} 13. Be2 {[%clk 0:01:02]}  Ba4 {[%clk 0:02:27]} 14. Nb3 {[%clk 0:00:57]}  Qa6 {[%clk 0:02:21]} 15. Qd3 {[%clk 0:00:45]}  Ne4 {[%clk 0:02:12]} 16. Bxe7 {[%clk 0:00:28]}  Rde8 {[%clk 0:02:12]} 17. Bh4 {[%clk 0:00:27]}  g5 {[%clk 0:02:12]} 18. Bg3 {[%clk 0:00:28]}  Rhf8 {[%clk 0:02:08]} 19. Bh2 {[%clk 0:00:20]}  Bd7 {[%clk 0:01:36]} 20. f3 {[%clk 0:00:18]}  Qxa2 {[%clk 0:01:30]} 21. fxe4 {[%clk 0:00:06]}  Qxb3 {[%clk 0:01:30]} 22. Bxd6 {[%clk 0:00:07]}  Qa3 {[%clk 0:01:20]} 23. Qc2 {[%clk 0:00:06]}  Rf6 {[%clk 0:01:05]} 24. e5 {[%clk 0:00:06]}  Rxd6 {[%clk 0:01:06]} 25. exd6 {[%clk 0:00:06]}  Rxe3 {[%clk 0:01:06]} 26. O-O {[%clk 0:00:05]}  Qa4 {[%clk 0:00:57]} 27. Bd3 {[%clk 0:00:05]}  Qxc2 {[%clk 0:00:54]} 28. Bxc2 {[%clk 0:00:06]}  Rxc3 {[%clk 0:00:38]} 29. Bxf5 {[%clk 0:00:03]}  Rxc1 {[%clk 0:00:38]} 30. Bxd7+ {[%clk 0:00:03]}  Kxd7 {[%clk 0:00:39]} 31. Rxc1 {[%clk 0:00:04]}  Kxd6 {[%clk 0:00:39]} 32. g4 {[%clk 0:00:04]}  a5 {[%clk 0:00:35]} 33. Rf1 {[%clk 0:00:03]}  Nxc4 {[%clk 0:00:34]} 34. Rf7 {[%clk 0:00:04]}  b5 {[%clk 0:00:31]} 35. Rxh7 {[%clk 0:00:04]}  a4 {[%clk 0:00:31]} 36. h6 {[%clk 0:00:04]}  a3 {[%clk 0:00:27]} 37. Ra7 {[%clk 0:00:04]}  Ne5 {[%clk 0:00:27]} 38. h7 {[%clk 0:00:05]}  Ng6 {[%clk 0:00:27]} 39. Ra6+ {[%clk 0:00:05]}  Kxd5 {[%clk 0:00:27]} 40. Rxg6 {[%clk 0:00:06]} 1-0


[Site "https://www.chess.com"]

[Event "Titled Tuesday Blitz September 27 Early 2022"]
[White "Sadilek, Peter"]
[Black "Sailer, Mike"]
[WhiteFideId "1616439"]
[BlackFideId "2012901"]
[WhiteElo "2145"]
[BlackElo "2109"]
[Result "1-0"]
[Round "07"]
[TimeControl "180+1"]
[Date "2022.09.27"]
[WhiteClock "0:00:56"]
[BlackClock "0:00:09"]

1. Nf3 {[%clk 0:02:58]}  d5 {[%clk 0:02:59]} 2. d4 {[%clk 0:02:58]}  Bf5 {[%clk 0:02:59]} 3. g3 {[%clk 0:02:58]}  e6 {[%clk 0:02:58]} 4. Bg2 {[%clk 0:02:58]}  Nf6 {[%clk 0:02:58]} 5. c4 {[%clk 0:02:59]}  Be7 {[%clk 0:02:56]} 6. Nc3 {[%clk 0:02:59]}  O-O {[%clk 0:02:55]} 7. O-O {[%clk 0:02:59]}  Nbd7 {[%clk 0:02:54]} 8. cxd5 {[%clk 0:02:58]}  exd5 {[%clk 0:02:54]} 9. Bf4 {[%clk 0:02:55]}  c6 {[%clk 0:02:53]} 10. Nh4 {[%clk 0:02:48]}  Bg4 {[%clk 0:02:51]} 11. h3 {[%clk 0:02:47]}  Bh5 {[%clk 0:02:50]} 12. g4 {[%clk 0:02:47]}  Ne8 {[%clk 0:02:33]} 13. Nf5 {[%clk 0:02:46]}  Bg6 {[%clk 0:02:32]} 14. Nxe7+ {[%clk 0:02:47]}  Qxe7 {[%clk 0:02:31]} 15. Re1 {[%clk 0:02:43]}  f5 {[%clk 0:02:23]} 16. g5 {[%clk 0:02:42]}  Nd6 {[%clk 0:02:17]} 17. f3 {[%clk 0:02:38]}  Rae8 {[%clk 0:02:13]} 18. h4 {[%clk 0:02:36]}  Nc4 {[%clk 0:02:07]} 19. Qc1 {[%clk 0:02:26]}  Ne3 {[%clk 0:02:00]} 20. Bxe3 {[%clk 0:02:26]}  Qxe3+ {[%clk 0:02:00]} 21. Qxe3 {[%clk 0:02:27]}  Rxe3 {[%clk 0:02:00]} 22. Kf2 {[%clk 0:02:27]}  f4 {[%clk 0:01:48]} 23. Nd1 {[%clk 0:01:45]}  Re7 {[%clk 0:01:37]} 24. e3 {[%clk 0:01:43]}  fxe3+ {[%clk 0:01:37]} 25. Rxe3 {[%clk 0:01:42]}  Rxe3 {[%clk 0:01:37]} 26. Nxe3 {[%clk 0:01:41]}  Rf4 {[%clk 0:01:22]} 27. Bh3 {[%clk 0:01:31]}  Nb6 {[%clk 0:01:09]} 28. Rd1 {[%clk 0:01:28]}  Rxh4 {[%clk 0:01:06]} 29. Kg3 {[%clk 0:01:27]}  Rh5 {[%clk 0:00:58]} 30. f4 {[%clk 0:01:25]}  Be4 {[%clk 0:00:52]} 31. Ng2 {[%clk 0:00:58]}  h6 {[%clk 0:00:35]} 32. Bg4 {[%clk 0:00:56]}  Bxg2 {[%clk 0:00:24]} 33. Bxh5 {[%clk 0:00:55]}  Be4 {[%clk 0:00:22]} 34. b3 {[%clk 0:00:53]}  hxg5 {[%clk 0:00:21]} 35. fxg5 {[%clk 0:00:54]}  Nd7 {[%clk 0:00:18]} 36. Kf4 {[%clk 0:00:54]}  g6 {[%clk 0:00:16]} 37. Bg4 {[%clk 0:00:54]}  Nf8 {[%clk 0:00:14]} 38. Bc8 {[%clk 0:00:55]}  b6 {[%clk 0:00:14]} 39. Rc1 {[%clk 0:00:55]}  Kf7 {[%clk 0:00:09]} 40. Rxc6 {[%clk 0:00:56]} 1-0


[Site "https://www.chess.com"]

[Event "Titled Tuesday Blitz September 27 Early 2022"]
[White "Samarth, J Rao"]
[Black "Mihailidis, Anastasios"]
[WhiteFideId "46652370"]
[BlackFideId "4205588"]
[WhiteElo "1514"]
[BlackElo "2312"]
[Result "1-0"]
[Round "07"]
[TimeControl "180+1"]
[Date "2022.09.27"]
[WhiteClock "0:02:09"]
[BlackClock "0:00:08"]

1. c4 {[%clk 0:02:59]}  e6 {[%clk 0:02:59]} 2. d4 {[%clk 0:02:59]}  d5 {[%clk 0:02:59]} 3. Nc3 {[%clk 0:02:59]}  Nf6 {[%clk 0:02:59]} 4. cxd5 {[%clk 0:02:59]}  exd5 {[%clk 0:02:59]} 5. Bg5 {[%clk 0:02:59]}  Be7 {[%clk 0:02:59]} 6. e3 {[%clk 0:02:59]}  c6 {[%clk 0:02:58]} 7. Qc2 {[%clk 0:02:59]}  h6 {[%clk 0:02:58]} 8. Bh4 {[%clk 0:02:59]}  O-O {[%clk 0:02:57]} 9. Bd3 {[%clk 0:02:59]}  Re8 {[%clk 0:02:58]} 10. Nge2 {[%clk 0:03:00]}  Nh5 {[%clk 0:02:57]} 11. Bg3 {[%clk 0:02:56]}  Bh4 {[%clk 0:02:50]} 12. O-O-O {[%clk 0:02:53]}  b5 {[%clk 0:02:43]} 13. Kb1 {[%clk 0:02:45]}  a5 {[%clk 0:02:40]} 14. Nf4 {[%clk 0:02:43]}  Nxf4 {[%clk 0:02:35]} 15. Bxf4 {[%clk 0:02:40]}  Na6 {[%clk 0:02:29]} 16. a3 {[%clk 0:02:39]}  b4 {[%clk 0:02:27]} 17. Na4 {[%clk 0:02:36]}  bxa3 {[%clk 0:02:25]} 18. bxa3 {[%clk 0:02:37]}  Qe7 {[%clk 0:02:13]} 19. Ka2 {[%clk 0:02:37]}  Bd7 {[%clk 0:01:44]} 20. Rb1 {[%clk 0:02:32]}  c5 {[%clk 0:01:00]} 21. Nxc5 {[%clk 0:02:25]}  Nb4+ {[%clk 0:00:58]} 22. axb4 {[%clk 0:02:23]}  axb4+ {[%clk 0:00:58]} 23. Kb2 {[%clk 0:02:23]}  Rec8 {[%clk 0:00:52]} 24. Ra1 {[%clk 0:02:22]}  Rxa1 {[%clk 0:00:51]} 25. Rxa1 {[%clk 0:02:23]}  Bf6 {[%clk 0:00:51]} 26. Kb3 {[%clk 0:02:15]}  g6 {[%clk 0:00:42]} 27. Ra7 {[%clk 0:02:13]}  Rd8 {[%clk 0:00:27]} 28. Bxg6 {[%clk 0:02:12]}  fxg6 {[%clk 0:00:20]} 29. Qxg6+ {[%clk 0:02:13]}  Bg7 {[%clk 0:00:20]} 30. Bxh6 {[%clk 0:02:08]}  Kh8 {[%clk 0:00:07]} 31. Qxg7+ {[%clk 0:02:07]}  Qxg7 {[%clk 0:00:07]} 32. Bxg7+ {[%clk 0:02:08]}  Kxg7 {[%clk 0:00:08]} 33. Rxd7+ {[%clk 0:02:09]} 1-0


[Site "https://www.chess.com"]

[Event "Titled Tuesday Blitz September 27 Early 2022"]
[White "Sanchez Alvares, Kelvin Antonio"]
[Black "Diaz Perez, Michel Alejandro"]
[WhiteFideId "3906680"]
[BlackFideId "3517179"]
[WhiteElo "2189"]
[BlackElo "2313"]
[Result "0-1"]
[Round "07"]
[TimeControl "180+1"]
[Date "2022.09.27"]
[WhiteClock "0:00:11"]
[BlackClock "0:00:07"]

1. e4 {[%clk 0:03:00]}  d5 {[%clk 0:02:58]} 2. exd5 {[%clk 0:03:00]}  Nf6 {[%clk 0:02:58]} 3. d4 {[%clk 0:03:00]}  Bg4 {[%clk 0:02:57]} 4. f3 {[%clk 0:02:58]}  Bf5 {[%clk 0:02:57]} 5. c4 {[%clk 0:02:55]}  e6 {[%clk 0:02:57]} 6. dxe6 {[%clk 0:02:54]}  Bb4+ {[%clk 0:02:57]} 7. Nc3 {[%clk 0:02:52]}  O-O {[%clk 0:02:52]} 8. Be3 {[%clk 0:02:48]}  Re8 {[%clk 0:02:50]} 9. Kf2 {[%clk 0:02:46]}  Rxe6 {[%clk 0:02:45]} 10. Nge2 {[%clk 0:02:44]}  Nbd7 {[%clk 0:02:25]} 11. Nf4 {[%clk 0:02:37]}  Re8 {[%clk 0:02:21]} 12. Bd3 {[%clk 0:02:37]}  Bg6 {[%clk 0:02:07]} 13. Nxg6 {[%clk 0:02:27]}  hxg6 {[%clk 0:02:08]} 14. Re1 {[%clk 0:02:26]}  c5 {[%clk 0:01:57]} 15. d5 {[%clk 0:02:21]}  Ne5 {[%clk 0:01:57]} 16. Bf1 {[%clk 0:02:20]}  Nfg4+ {[%clk 0:01:24]} 17. fxg4 {[%clk 0:02:19]}  Qh4+ {[%clk 0:01:24]} 18. Kg1 {[%clk 0:02:16]}  Nxg4 {[%clk 0:01:22]} 19. Bf4 {[%clk 0:02:05]}  Qf2+ {[%clk 0:01:21]} 20. Kh1 {[%clk 0:02:05]}  Qxf4 {[%clk 0:01:21]} 21. g3 {[%clk 0:02:02]}  Qf5 {[%clk 0:01:13]} 22. Qd2 {[%clk 0:01:37]}  Bxc3 {[%clk 0:00:55]} 23. bxc3 {[%clk 0:01:35]}  Nf2+ {[%clk 0:00:54]} 24. Kg1 {[%clk 0:01:34]}  Ne4 {[%clk 0:00:54]} 25. Qc2 {[%clk 0:01:24]}  Qg4 {[%clk 0:00:54]} 26. Be2 {[%clk 0:01:12]}  Qg5 {[%clk 0:00:51]} 27. Bf3 {[%clk 0:01:12]}  Nd6 {[%clk 0:00:35]} 28. Qf2 {[%clk 0:01:07]}  b6 {[%clk 0:00:34]} 29. Be2 {[%clk 0:00:58]}  Re3 {[%clk 0:00:30]} 30. Bf1 {[%clk 0:00:53]}  Rae8 {[%clk 0:00:30]} 31. a4 {[%clk 0:00:51]}  a5 {[%clk 0:00:15]} 32. Rxe3 {[%clk 0:00:48]}  Qxe3 {[%clk 0:00:14]} 33. Qxe3 {[%clk 0:00:46]}  Rxe3 {[%clk 0:00:15]} 34. Rb1 {[%clk 0:00:46]}  Rxc3 {[%clk 0:00:14]} 35. Rxb6 {[%clk 0:00:45]}  Nxc4 {[%clk 0:00:15]} 36. Rc6 {[%clk 0:00:40]}  Ne5 {[%clk 0:00:13]} 37. Rc8+ {[%clk 0:00:36]}  Kh7 {[%clk 0:00:14]} 38. Bb5 {[%clk 0:00:35]}  Rc2 {[%clk 0:00:13]} 39. d6 {[%clk 0:00:34]}  Rd2 {[%clk 0:00:12]} 40. Rxc5 {[%clk 0:00:33]}  Nf3+ {[%clk 0:00:12]} 41. Kf1 {[%clk 0:00:33]}  Nxh2+ {[%clk 0:00:12]} 42. Kg1 {[%clk 0:00:33]}  Nf3+ {[%clk 0:00:13]} 43. Kf1 {[%clk 0:00:33]}  Rxd6 {[%clk 0:00:14]} 44. Be2 {[%clk 0:00:30]}  Nd2+ {[%clk 0:00:13]} 45. Ke1 {[%clk 0:00:30]}  Ne4 {[%clk 0:00:13]} 46. Rxa5 {[%clk 0:00:29]}  Nxg3 {[%clk 0:00:14]} 47. Bc4 {[%clk 0:00:29]}  f5 {[%clk 0:00:13]} 48. Rd5 {[%clk 0:00:26]}  Rc6 {[%clk 0:00:12]} 49. Bb5 {[%clk 0:00:26]}  Rc2 {[%clk 0:00:10]} 50. Rd2 {[%clk 0:00:24]}  Rc1+ {[%clk 0:00:10]} 51. Rd1 {[%clk 0:00:24]}  Rc3 {[%clk 0:00:10]} 52. Ra1 {[%clk 0:00:23]}  Rc5 {[%clk 0:00:10]} 53. Bd3 {[%clk 0:00:21]}  Ra5 {[%clk 0:00:10]} 54. Bb5 {[%clk 0:00:21]}  Ne4 {[%clk 0:00:10]} 55. Ra3 {[%clk 0:00:20]}  g5 {[%clk 0:00:07]} 56. Bd7 {[%clk 0:00:17]}  g6 {[%clk 0:00:07]} 57. Rd3 {[%clk 0:00:15]}  Kh6 {[%clk 0:00:06]} 58. Bb5 {[%clk 0:00:15]}  g4 {[%clk 0:00:07]} 59. Ke2 {[%clk 0:00:13]}  Kg5 {[%clk 0:00:07]} 60. Rd8 {[%clk 0:00:13]}  Kf4 {[%clk 0:00:07]} 61. Rd4 {[%clk 0:00:12]}  Ke5 {[%clk 0:00:07]} 62. Rd8 {[%clk 0:00:12]}  Nc3+ {[%clk 0:00:07]} 63. Kf2 {[%clk 0:00:11]}  Nxb5 {[%clk 0:00:08]} 64. axb5 {[%clk 0:00:10]}  Rxb5 {[%clk 0:00:09]} 65. Rg8 {[%clk 0:00:11]}  Kf4 {[%clk 0:00:07]} 0-1


[Site "https://www.chess.com"]

[Event "Titled Tuesday Blitz September 27 Early 2022"]
[White "Sargissyan, Sargis"]
[Black "Ovezdurdyyeva, Jemal"]
[WhiteFideId "13303210"]
[BlackFideId "14001888"]
[WhiteElo "2102"]
[BlackElo "1946"]
[Result "1-0"]
[Round "07"]
[TimeControl "180+1"]
[Date "2022.09.27"]
[WhiteClock "0:00:10"]
[BlackClock "0:00:05"]

1. e4 {[%clk 0:02:49]}  d6 {[%clk 0:02:59]} 2. d4 {[%clk 0:02:48]}  Nf6 {[%clk 0:02:58]} 3. Nc3 {[%clk 0:02:48]}  g6 {[%clk 0:02:49]} 4. Be3 {[%clk 0:02:49]}  c6 {[%clk 0:02:49]} 5. f3 {[%clk 0:02:49]}  Bg7 {[%clk 0:02:49]} 6. Qd2 {[%clk 0:02:50]}  h5 {[%clk 0:02:48]} 7. Bc4 {[%clk 0:02:34]}  b5 {[%clk 0:02:47]} 8. Bb3 {[%clk 0:02:34]}  b4 {[%clk 0:02:42]} 9. Nce2 {[%clk 0:02:33]}  a5 {[%clk 0:02:42]} 10. a3 {[%clk 0:02:20]}  a4 {[%clk 0:02:37]} 11. Bc4 {[%clk 0:02:17]}  d5 {[%clk 0:02:32]} 12. exd5 {[%clk 0:02:16]}  bxa3 {[%clk 0:02:28]} 13. Rxa3 {[%clk 0:02:16]}  cxd5 {[%clk 0:02:27]} 14. Bd3 {[%clk 0:02:05]}  O-O {[%clk 0:02:04]} 15. Bh6 {[%clk 0:02:04]}  Qb6 {[%clk 0:02:02]} 16. Bxg7 {[%clk 0:02:02]}  Kxg7 {[%clk 0:02:01]} 17. c3 {[%clk 0:01:47]}  Nc6 {[%clk 0:01:36]} 18. Nf4 {[%clk 0:01:22]}  Na5 {[%clk 0:01:30]} 19. Nge2 {[%clk 0:01:22]}  Nc4 {[%clk 0:01:24]} 20. Bxc4 {[%clk 0:01:21]}  dxc4 {[%clk 0:01:24]} 21. Ra2 {[%clk 0:00:32]}  Bf5 {[%clk 0:01:08]} 22. O-O {[%clk 0:00:20]}  e5 {[%clk 0:00:44]} 23. Nh3 {[%clk 0:00:20]}  Bxh3 {[%clk 0:00:44]} 24. gxh3 {[%clk 0:00:21]}  e4 {[%clk 0:00:43]} 25. Qe3 {[%clk 0:00:19]}  Rae8 {[%clk 0:00:38]} 26. Ng3 {[%clk 0:00:19]}  Qb3 {[%clk 0:00:35]} 27. Raa1 {[%clk 0:00:18]}  Qxb2 {[%clk 0:00:35]} 28. fxe4 {[%clk 0:00:18]}  Nd5 {[%clk 0:00:28]} 29. Qg5 {[%clk 0:00:16]}  f6 {[%clk 0:00:15]} 30. Nxh5+ {[%clk 0:00:15]}  Kh7 {[%clk 0:00:15]} 31. Nxf6+ {[%clk 0:00:11]}  Nxf6 {[%clk 0:00:14]} 32. Rab1 {[%clk 0:00:11]}  Qxc3 {[%clk 0:00:13]} 33. Rb7+ {[%clk 0:00:10]}  Kh8 {[%clk 0:00:05]} 34. Qh6+ {[%clk 0:00:10]}  Kg8 {[%clk 0:00:05]} 35. Qg7# {[%clk 0:00:10]} 1-0


[Site "https://www.chess.com"]

[Event "Titled Tuesday Blitz September 27 Early 2022"]
[White "Saydaliev, Saidakbar"]
[Black "Miszler, Levente"]
[WhiteFideId "14203693"]
[BlackFideId "763276"]
[WhiteElo "2741"]
[BlackElo "2540"]
[Result "0-1"]
[Round "07"]
[TimeControl "180+1"]
[Date "2022.09.27"]
[WhiteClock "0:00:12"]
[BlackClock "0:00:50"]

1. e4 {[%clk 0:03:00]}  e6 {[%clk 0:02:59]} 2. d4 {[%clk 0:03:00]}  d5 {[%clk 0:02:58]} 3. Nd2 {[%clk 0:03:01]}  f5 {[%clk 0:02:58]} 4. exf5 {[%clk 0:02:48]}  exf5 {[%clk 0:02:59]} 5. Ndf3 {[%clk 0:02:45]}  Nf6 {[%clk 0:02:58]} 6. Bd3 {[%clk 0:02:42]}  Bd6 {[%clk 0:02:56]} 7. Ne2 {[%clk 0:02:42]}  O-O {[%clk 0:02:56]} 8. O-O {[%clk 0:02:35]}  Ne4 {[%clk 0:02:55]} 9. Bf4 {[%clk 0:02:35]}  Nd7 {[%clk 0:02:52]} 10. Bxd6 {[%clk 0:02:33]}  cxd6 {[%clk 0:02:41]} 11. Nd2 {[%clk 0:02:12]}  Qg5 {[%clk 0:02:34]} 12. Nf3 {[%clk 0:01:48]}  Qh6 {[%clk 0:02:28]} 13. c4 {[%clk 0:01:45]}  g5 {[%clk 0:02:25]} 14. cxd5 {[%clk 0:01:41]}  Ndf6 {[%clk 0:02:21]} 15. Ng3 {[%clk 0:01:39]}  g4 {[%clk 0:02:09]} 16. Ne1 {[%clk 0:01:18]}  Nd2 {[%clk 0:02:08]} 17. Qc1 {[%clk 0:01:14]}  Kg7 {[%clk 0:01:56]} 18. Qc7+ {[%clk 0:00:40]}  Rf7 {[%clk 0:01:55]} 19. Qxd6 {[%clk 0:00:40]}  f4 {[%clk 0:01:44]} 20. Nf5+ {[%clk 0:00:23]}  Bxf5 {[%clk 0:01:43]} 21. Bxf5 {[%clk 0:00:24]}  Nxf1 {[%clk 0:01:42]} 22. Kxf1 {[%clk 0:00:21]}  Qxh2 {[%clk 0:01:42]} 23. Be6 {[%clk 0:00:20]}  Re8 {[%clk 0:01:37]} 24. Nd3 {[%clk 0:00:19]}  Qh1+ {[%clk 0:01:29]} 25. Ke2 {[%clk 0:00:20]}  Qxa1 {[%clk 0:01:29]} 26. Qxf4 {[%clk 0:00:20]}  h6 {[%clk 0:01:16]} 27. Kd2 {[%clk 0:00:16]}  Qxa2 {[%clk 0:01:14]} 28. Bxf7 {[%clk 0:00:16]}  Kxf7 {[%clk 0:01:06]} 29. Qc7+ {[%clk 0:00:16]}  Kg8 {[%clk 0:00:57]} 30. d6 {[%clk 0:00:14]}  Ne4+ {[%clk 0:00:54]} 31. Kc2 {[%clk 0:00:13]}  Qa4+ {[%clk 0:00:53]} 32. Kc1 {[%clk 0:00:12]}  Qc6+ {[%clk 0:00:50]} 33. Qxc6 {[%clk 0:00:12]}  bxc6 {[%clk 0:00:51]} 34. d7 {[%clk 0:00:12]}  Rd8 {[%clk 0:00:51]} 35. Ne5 {[%clk 0:00:12]}  Nf6 {[%clk 0:00:50]} 0-1


[Site "https://www.chess.com"]

[Event "Titled Tuesday Blitz September 27 Early 2022"]
[White "Schill, William"]
[Black "Sovetbekova, Nurai"]
[WhiteFideId "2016710"]
[BlackFideId "13801910"]
[WhiteElo "1949"]
[BlackElo "1646"]
[Result "0-1"]
[Round "07"]
[TimeControl "180+1"]
[Date "2022.09.27"]
[WhiteClock "0:00:01"]
[BlackClock "0:00:32"]

1. e4 {[%clk 0:03:00]}  c5 {[%clk 0:02:59]} 2. Nf3 {[%clk 0:03:00]}  d6 {[%clk 0:02:59]} 3. d4 {[%clk 0:02:59]}  cxd4 {[%clk 0:03:00]} 4. Nxd4 {[%clk 0:02:59]}  Nf6 {[%clk 0:03:01]} 5. Nc3 {[%clk 0:02:59]}  a6 {[%clk 0:03:02]} 6. Bg5 {[%clk 0:02:59]}  e6 {[%clk 0:03:02]} 7. f4 {[%clk 0:02:58]}  Be7 {[%clk 0:03:02]} 8. Qf3 {[%clk 0:02:57]}  Qc7 {[%clk 0:02:58]} 9. O-O-O {[%clk 0:02:56]}  Nbd7 {[%clk 0:02:58]} 10. f5 {[%clk 0:02:56]}  Ne5 {[%clk 0:02:43]} 11. Qh3 {[%clk 0:02:54]}  exf5 {[%clk 0:02:39]} 12. Nxf5 {[%clk 0:02:22]}  g6 {[%clk 0:02:14]} 13. Qh4 {[%clk 0:01:33]}  gxf5 {[%clk 0:01:58]} 14. Bxf6 {[%clk 0:01:33]}  Ng6 {[%clk 0:01:58]} 15. Nd5 {[%clk 0:01:01]}  Nxh4 {[%clk 0:01:50]} 16. Nxc7+ {[%clk 0:01:00]}  Kd7 {[%clk 0:01:49]} 17. Bxh8 {[%clk 0:00:42]}  Kxc7 {[%clk 0:01:41]} 18. exf5 {[%clk 0:00:40]}  Bxf5 {[%clk 0:01:38]} 19. Bd4 {[%clk 0:00:41]}  Rc8 {[%clk 0:01:29]} 20. Bd3 {[%clk 0:00:40]}  Bg4 {[%clk 0:01:27]} 21. Rdf1 {[%clk 0:00:34]}  Be6 {[%clk 0:01:16]} 22. g3 {[%clk 0:00:24]}  Ng6 {[%clk 0:01:15]} 23. h4 {[%clk 0:00:23]}  Ne5 {[%clk 0:01:06]} 24. Bxe5 {[%clk 0:00:20]}  dxe5 {[%clk 0:01:06]} 25. Bxh7 {[%clk 0:00:17]}  Rh8 {[%clk 0:00:59]} 26. Bf5 {[%clk 0:00:16]}  Bd5 {[%clk 0:00:57]} 27. Rhg1 {[%clk 0:00:15]}  Bc5 {[%clk 0:00:53]} 28. Rh1 {[%clk 0:00:06]}  Bxh1 {[%clk 0:00:51]} 29. Rxh1 {[%clk 0:00:06]}  Kd6 {[%clk 0:00:46]} 30. Be4 {[%clk 0:00:05]}  b5 {[%clk 0:00:44]} 31. Rf1 {[%clk 0:00:05]}  Ke6 {[%clk 0:00:43]} 32. Bf5+ {[%clk 0:00:04]}  Ke7 {[%clk 0:00:43]} 33. Be4 {[%clk 0:00:04]}  Rh5 {[%clk 0:00:39]} 34. Bd5 {[%clk 0:00:03]}  f5 {[%clk 0:00:38]} 35. Bb7 {[%clk 0:00:02]}  a5 {[%clk 0:00:36]} 36. Bc8 {[%clk 0:00:02]}  f4 {[%clk 0:00:31]} 37. gxf4 {[%clk 0:00:01]}  exf4 {[%clk 0:00:32]} 0-1


[Site "https://www.chess.com"]

[Event "Titled Tuesday Blitz September 27 Early 2022"]
[White "Sebenik, Matej"]
[Black "Pham, Khoi"]
[WhiteFideId "14602296"]
[BlackFideId "1054988"]
[WhiteElo "2461"]
[BlackElo "2448"]
[Result "1-0"]
[Round "07"]
[TimeControl "180+1"]
[Date "2022.09.27"]
[WhiteClock "0:01:46"]
[BlackClock "0:02:06"]

1. d4 {[%clk 0:03:00]}  f5 {[%clk 0:02:59]} 2. g3 {[%clk 0:02:57]}  Nf6 {[%clk 0:02:59]} 3. Bg2 {[%clk 0:02:58]}  g6 {[%clk 0:02:59]} 4. c4 {[%clk 0:02:57]}  Bg7 {[%clk 0:03:00]} 5. Nf3 {[%clk 0:02:57]}  O-O {[%clk 0:03:00]} 6. O-O {[%clk 0:02:58]}  d6 {[%clk 0:03:01]} 7. Nc3 {[%clk 0:02:58]}  Qe8 {[%clk 0:03:01]} 8. b3 {[%clk 0:02:52]}  Na6 {[%clk 0:03:00]} 9. Ba3 {[%clk 0:02:46]}  c6 {[%clk 0:02:59]} 10. Qd3 {[%clk 0:02:45]}  Rb8 {[%clk 0:02:58]} 11. e4 {[%clk 0:02:40]}  fxe4 {[%clk 0:02:56]} 12. Nxe4 {[%clk 0:02:41]}  Nxe4 {[%clk 0:02:56]} 13. Qxe4 {[%clk 0:02:42]}  Bf5 {[%clk 0:02:56]} 14. Qe3 {[%clk 0:02:38]}  b5 {[%clk 0:02:57]} 15. Rfe1 {[%clk 0:02:35]}  Rb7 {[%clk 0:02:40]} 16. cxb5 {[%clk 0:02:25]}  cxb5 {[%clk 0:02:38]} 17. Ng5 {[%clk 0:02:25]}  Rc7 {[%clk 0:02:27]} 18. Bxd6 {[%clk 0:02:21]}  Rc2 {[%clk 0:02:24]} 19. Bxe7 {[%clk 0:01:56]}  Bf6 {[%clk 0:02:06]} 20. Bd5+ {[%clk 0:01:46]} 1-0


[Site "https://www.chess.com"]

[Event "Titled Tuesday Blitz September 27 Early 2022"]
[White "Seifert, Henryk"]
[Black "Ansh M Shah"]
[WhiteFideId "1100963"]
[BlackFideId "25033379"]
[WhiteElo "2120"]
[BlackElo "1819"]
[Result "0-1"]
[Round "07"]
[TimeControl "180+1"]
[Date "2022.09.27"]
[WhiteClock "0:00:01"]
[BlackClock "0:00:07"]

1. e4 {[%clk 0:03:00]}  c6 {[%clk 0:02:59]} 2. d4 {[%clk 0:03:00]}  d5 {[%clk 0:03:00]} 3. exd5 {[%clk 0:03:00]}  cxd5 {[%clk 0:03:01]} 4. Bd3 {[%clk 0:03:00]}  Nc6 {[%clk 0:03:01]} 5. c3 {[%clk 0:03:00]}  Qc7 {[%clk 0:03:01]} 6. Nf3 {[%clk 0:02:50]}  Bg4 {[%clk 0:02:57]} 7. Nbd2 {[%clk 0:02:50]}  Nf6 {[%clk 0:02:56]} 8. h3 {[%clk 0:02:48]}  Bh5 {[%clk 0:02:56]} 9. O-O {[%clk 0:02:48]}  Bg6 {[%clk 0:02:55]} 10. Nb3 {[%clk 0:02:32]}  e6 {[%clk 0:02:44]} 11. Re1 {[%clk 0:02:30]}  Bd6 {[%clk 0:02:32]} 12. a4 {[%clk 0:02:18]}  O-O {[%clk 0:01:56]} 13. Bxg6 {[%clk 0:02:17]}  hxg6 {[%clk 0:01:56]} 14. Be3 {[%clk 0:02:08]}  Rfc8 {[%clk 0:01:15]} 15. Nbd2 {[%clk 0:01:49]}  Na5 {[%clk 0:01:11]} 16. Qe2 {[%clk 0:01:40]}  Nc4 {[%clk 0:00:52]} 17. Nxc4 {[%clk 0:01:33]}  Qxc4 {[%clk 0:00:53]} 18. Qxc4 {[%clk 0:01:21]}  Rxc4 {[%clk 0:00:54]} 19. Nd2 {[%clk 0:01:15]}  Rc7 {[%clk 0:00:50]} 20. a5 {[%clk 0:01:12]}  Rac8 {[%clk 0:00:37]} 21. g3 {[%clk 0:00:52]}  Kf8 {[%clk 0:00:08]} 22. Kg2 {[%clk 0:00:51]}  Ke7 {[%clk 0:00:07]} 23. f4 {[%clk 0:00:47]}  Nd7 {[%clk 0:00:07]} 24. Nf3 {[%clk 0:00:42]}  f6 {[%clk 0:00:07]} 25. Nh4 {[%clk 0:00:35]}  Kf7 {[%clk 0:00:07]} 26. Nf3 {[%clk 0:00:27]}  Rc4 {[%clk 0:00:05]} 27. Ra2 {[%clk 0:00:24]}  R4c6 {[%clk 0:00:04]} 28. Rea1 {[%clk 0:00:23]}  Ra6 {[%clk 0:00:04]} 29. Bd2 {[%clk 0:00:20]}  Rac6 {[%clk 0:00:03]} 30. Ne1 {[%clk 0:00:20]}  R6c7 {[%clk 0:00:03]} 31. Nd3 {[%clk 0:00:20]}  Ke7 {[%clk 0:00:03]} 32. Kf3 {[%clk 0:00:18]}  Kf7 {[%clk 0:00:04]} 33. h4 {[%clk 0:00:18]}  Ke7 {[%clk 0:00:04]} 34. b4 {[%clk 0:00:15]}  Kf7 {[%clk 0:00:04]} 35. Be1 {[%clk 0:00:11]}  Rc4 {[%clk 0:00:04]} 36. Ke3 {[%clk 0:00:11]}  R4c7 {[%clk 0:00:04]} 37. b5 {[%clk 0:00:10]}  Rc4 {[%clk 0:00:04]} 38. Nb2 {[%clk 0:00:08]}  R4c7 {[%clk 0:00:04]} 39. Nd3 {[%clk 0:00:08]}  Rc4 {[%clk 0:00:04]} 40. Rb2 {[%clk 0:00:07]}  R4c7 {[%clk 0:00:04]} 41. b6 {[%clk 0:00:06]}  axb6 {[%clk 0:00:04]} 42. axb6 {[%clk 0:00:07]}  Rc6 {[%clk 0:00:05]} 43. Ra7 {[%clk 0:00:05]}  Rb8 {[%clk 0:00:06]} 44. Bd2 {[%clk 0:00:04]}  Rxb6 {[%clk 0:00:06]} 45. Rxb6 {[%clk 0:00:03]}  Nxb6 {[%clk 0:00:07]} 46. Nc5 {[%clk 0:00:03]}  Nc4+ {[%clk 0:00:07]} 47. Kd3 {[%clk 0:00:02]}  Bxc5 {[%clk 0:00:08]} 48. dxc5 {[%clk 0:00:02]}  Ke7 {[%clk 0:00:07]} 49. Bc1 {[%clk 0:00:01]}  Kd7 {[%clk 0:00:07]} 50. g4 {[%clk 0:00:01]}  Kc6 {[%clk 0:00:07]} 0-1


[Site "https://www.chess.com"]